bitfinex-derivatives/quotes_BTCF0:USTF0_20250720
["timestamp","ask_amount","ask_price","bid_price","bid_amount"]
[1753001432486,1.07337697,118300.0,118290.0,0.56462047]
[1753001432686,1.07337697,118300.0,118290.0,0.5189526]
[1753001433285,0.90349,118300.0,118290.0,0.5189526]
[1753001433591,1.07337697,118300.0,118290.0,0.5189526]
[1753001434395,1.24235037,118300.0,118290.0,0.5189526]
[1753001435996,1.24235037,118300.0,118290.0,0.56462152]
[1753001437099,1.24235037,118300.0,118290.0,0.5189526]
[1753001438301,1.0724634,118300.0,118290.0,0.5189526]
[1753001438503,1.24235037,118300.0,118290.0,0.5189526]
[1753001439194,1.07337697,118300.0,118290.0,0.5189526]
[1753001439993,0.90349,118300.0,118290.0,0.5189526]
[1753001440197,1.07337697,118300.0,118290.0,0.5189526]
[1753001441200,0.90349,118300.0,118290.0,0.5189526]
[1753001442104,1.07337697,118300.0,118290.0,0.5189526]
[1753001443807,1.07337697,118300.0,118290.0,0.54939912]
[1753001444903,1.24235037,118300.0,118290.0,0.54939912]
[1753001446305,1.0724634,118300.0,118290.0,0.54939912]
[1753001446507,1.24235037,118300.0,118290.0,0.54939912]
[1753001447311,1.07337697,118300.0,118290.0,0.54939912]
[1753001448608,1.07337697,118300.0,118290.0,0.52368422]
[1753001448807,1.07337697,118300.0,118290.0,0.54966001]
[1753001449814,1.24235037,118300.0,118290.0,0.54966001]
[1753001450016,1.23911037,118300.0,118290.0,0.57249507]
[1753001451415,1.25764921,118300.0,118290.0,0.57249507]
[1753001453016,1.3425974,118300.0,118290.0,0.57249507]
[1753001453816,1.3425974,118300.0,118290.0,0.51921349]
[1753001454918,1.173624,118300.0,118290.0,0.5799479]
[1753001455120,1.173624,118300.0,118290.0,0.56488458]
[1753001455310,1.3425974,118300.0,118290.0,0.56488458]
[1753001456420,1.173624,118300.0,118290.0,0.56488458]
[1753001456716,1.7033974,118300.0,118290.0,0.31274458]
[1753001459219,1.44856224,118300.0,118290.0,0.31274458]
[1753001459426,1.7033974,118300.0,118290.0,0.31274458]
[1753001460822,1.7033974,118300.0,118290.0,0.05007688]
[1753001460823,1.83081498,118300.0,118290.0,0.05007688]
[1753001461721,1.83081498,118300.0,118290.0,0.00422688]
[1753001462022,1.83081498,118300.0,118290.0,0.03043898]
[1753001464117,1.18697498,118300.0,118290.0,0.03043898]
[1753001464422,1.83045498,118300.0,118290.0,0.07712898]
[1753001464722,1.7030374,118300.0,118290.0,0.07712898]
[1753001465523,1.7029974,118300.0,118290.0,0.35298688]
[1753001465713,2.8723174,118300.0,118290.0,0.35298688]
[1753001465915,2.61748224,118300.0,118290.0,0.35298688]
[1753001466319,2.8723174,118300.0,118290.0,0.35298688]
[1753001466719,2.8723174,118300.0,118290.0,0.18399898]
[1753001466924,2.8723174,118300.0,118290.0,0.35298668]
[1753001467324,2.8723174,118300.0,118290.0,0.18399898]
[1753001467618,2.8723174,118300.0,118290.0,0.52476426]
[1753001467619,1.78653,118300.0,118290.0,0.52476426]
[1753001467823,2.12697758,118300.0,118290.0,0.54611528]
[1753001468013,1.27228,118300.0,118290.0,0.54611528]
[1753001468215,2.04305758,118300.0,118290.0,0.85611528]
[1753001469618,2.04305758,118300.0,118290.0,0.92353563]
[1753001470015,2.04305758,118300.0,118290.0,0.85611528]
[1753001470220,2.04305758,118300.0,118290.0,0.88653239]
[1753001470417,0.74632,118300.0,118290.0,0.88653239]
[1753001470617,1.73536758,118330.0,118320.0,0.3225049]
[1753001470823,1.53008,118330.0,118320.0,0.85349006]
[1753001471022,2.17332,118330.0,118320.0,0.7684113]
[1753001471323,2.17332,118330.0,118320.0,0.80146673]
[1753001471629,2.3430764,118330.0,118320.0,0.80146673]
[1753001471820,1.06101,118330.0,118320.0,0.44146673]
[1753001472029,1.2317664,118330.0,118320.0,0.5286549]
[1753001472230,0.8709664,118330.0,118320.0,0.8894549]
[1753001472927,0.8699664,118330.0,118320.0,1.1865083]
[1753001473123,0.70021,118330.0,118320.0,1.1865083]
[1753001473323,0.8699664,118330.0,118320.0,1.1865083]
[1753001473828,0.8659664,118330.0,118320.0,1.28215909]
[1753001474121,0.8659664,118330.0,118320.0,1.01492734]
[1753001474326,1.034897,118330.0,118320.0,1.01492734]
[1753001474728,0.8659664,118330.0,118320.0,1.01492734]
[1753001475524,0.8659664,118330.0,118320.0,0.98456819]
[1753001475726,0.8659664,118330.0,118320.0,0.98453069]
[1753001476727,0.9438364,118330.0,118320.0,0.98453069]
[1753001476927,0.9438364,118330.0,118320.0,0.9365083]
[1753001477330,0.9438364,118330.0,118320.0,0.9845128]
[1753001477828,1.473567,118330.0,118320.0,0.6237128]
[1753001478531,1.3046364,118330.0,118320.0,0.6237128]
[1753001479229,0.77408,118330.0,118320.0,0.6237128]
[1753001479530,1.3046364,118330.0,118320.0,0.6237128]
[1753001480625,1.3046364,118330.0,118320.0,0.60097019]
[1753001481626,1.3046364,118330.0,118320.0,0.86097019]
[1753001481929,1.3046364,118330.0,118320.0,0.87097019]
[1753001482432,0.9438364,118330.0,118320.0,0.87097019]
[1753001482730,0.9438364,118330.0,118320.0,0.84097019]
[1753001482927,1.3046364,118330.0,118320.0,0.84097019]
[1753001483132,1.3046364,118330.0,118320.0,0.87097019]
[1753001483727,1.3046364,118330.0,118320.0,0.80713019]
[1753001484031,1.473567,118330.0,118320.0,0.48876679]
[1753001484633,1.473567,118330.0,118320.0,0.4635049]
[1753001485134,1.474567,118330.0,118320.0,0.4625049]
[1753001485527,1.476567,118330.0,118320.0,0.4625049]
[1753001489034,0.003,118330.0,118320.0,0.7286913]
[1753001489335,0.64548,118330.0,118320.0,1.34487565]
[1753001490232,0.8152364,118330.0,118320.0,1.17511925]
[1753001490431,0.8653264,118330.0,118320.0,0.50431925]
[1753001490635,0.8653264,118330.0,118320.0,0.50531925]
[1753001490831,0.8633264,118330.0,118320.0,0.50531925]
[1753001492134,0.69357,118330.0,118320.0,0.44531925]
[1753001492331,0.69357,118330.0,118320.0,0.76531925]
[1753001492729,0.8625006,118330.0,118320.0,0.49531925]
[1753001493032,0.8633264,118330.0,118320.0,0.54531925]
[1753001493432,0.8633264,118330.0,118320.0,0.90822925]
[1753001493734,1.032257,118330.0,118320.0,0.90822925]
[1753001493937,1.032257,118330.0,118320.0,0.93855273]
[1753001495832,0.05109,118330.0,118320.0,1.10830913]
[1753001496148,0.05109,118330.0,118320.0,1.33830913]
[1753001496330,0.05109,118330.0,118320.0,1.16855273]
[1753001497330,0.05109,118330.0,118320.0,1.18368038]
[1753001499237,0.05109,118330.0,118320.0,0.55750548]
[1753001499238,0.2955606,118330.0,118320.0,0.55750548]
[1753001499542,0.6350734,118330.0,118320.0,0.05887221]
[1753001499741,1.3566734,118330.0,118320.0,0.05887221]
[1753001500135,1.3566734,118330.0,118320.0,0.08165821]
[1753001500536,1.3586734,118330.0,118320.0,0.05887221]
[1753001500735,1.3586734,118330.0,118320.0,0.05787221]
[1753001500939,1.0201606,118330.0,118320.0,0.05787221]
[1753001501139,1.3596734,118330.0,118320.0,0.05787221]
[1753001503743,1.0201606,118330.0,118320.0,0.05787221]
[1753001504042,1.3596734,118330.0,118320.0,0.05787221]
[1753001504444,1.3596734,118330.0,118320.0,0.08067667]
[1753001504641,1.3596734,118330.0,118320.0,0.05787221]
[1753001505443,1.3596734,118330.0,118320.0,0.08067503]
[1753001506541,1.3596734,118330.0,118320.0,0.05029717]
[1753001506950,1.0201606,118330.0,118320.0,0.05029717]
[1753001507248,1.3596734,118330.0,118320.0,0.05029717]
[1753001509545,1.0201606,118330.0,118320.0,0.05029717]
[1753001509748,1.189917,118330.0,118320.0,0.09766717]
[1753001511850,1.189917,118330.0,118320.0,0.12263717]
[1753001512051,1.189917,118330.0,118320.0,0.20556717]
[1753001512453,1.0201606,118330.0,118320.0,0.23594503]
[1753001512653,1.189917,118330.0,118320.0,0.23594503]
[1753001513248,1.189917,118330.0,118320.0,0.40488983]
[1753001513453,1.189917,118330.0,118320.0,0.43726983]
[1753001513653,1.189917,118330.0,118320.0,0.26832503]
[1753001516251,1.189917,118330.0,118320.0,0.23594503]
[1753001516452,1.189917,118330.0,118320.0,0.18276435]
[1753001516453,1.0201606,118330.0,118320.0,0.18276435]
[1753001516651,1.189917,118330.0,118320.0,0.18276435]
[1753001523063,0.2934949,118320.0,118310.0,0.02280282]
[1753001523257,1.6604877,118320.0,118310.0,0.02280282]
[1753001523454,1.6604877,118320.0,118310.0,0.07000282]
[1753001523854,1.6604877,118320.0,118310.0,0.09491282]
[1753001524365,1.6614877,118320.0,118310.0,0.09491282]
[1753001524765,1.3219749,118320.0,118310.0,0.07211]
[1753001525064,1.6614877,118320.0,118310.0,0.07211]
[1753001525265,1.6614877,118320.0,118310.0,0.15098]
[1753001527166,1.3219749,118320.0,118310.0,0.15098]
[1753001527367,1.6614877,118320.0,118310.0,0.15098]
[1753001531465,2.04130933,118320.0,118290.0,0.03037786]
[1753001531671,2.04130933,118320.0,118280.0,0.04545113]
[1753001531672,0.1689877,118290.0,118280.0,0.15098]
[1753001531873,1.70019486,118290.0,118280.0,0.25096]
[1753001532770,1.70019486,118290.0,118280.0,0.08826]
[1753001532969,0.3537948,118250.0,118240.0,0.26449441]
[1753001533269,1.2451512,118250.0,118240.0,0.26449441]
[1753001533468,1.1899612,118250.0,118240.0,0.26449441]
[1753001533676,1.1899612,118250.0,118240.0,0.20376]
[1753001534087,1.1899612,118250.0,118240.0,0.21443368]
[1753001534777,1.1899612,118250.0,118240.0,0.21243368]
[1753001534979,1.1899612,118250.0,118240.0,0.28492455]
[1753001536281,1.0202048,118250.0,118240.0,0.28492455]
[1753001536487,1.1899612,118250.0,118240.0,0.28492455]
[1753001537374,1.0202048,118250.0,118240.0,0.28492455]
[1753001537581,1.1899612,118250.0,118240.0,0.28492455]
[1753001537783,1.1899612,118250.0,118240.0,0.30768469]
[1753001539285,1.2451512,118250.0,118240.0,0.30768469]
[1753001539486,1.2451512,118250.0,118240.0,0.47674379]
[1753001539785,1.2451512,118250.0,118240.0,0.45398365]
[1753001539985,1.2451512,118250.0,118240.0,0.28492455]
[1753001541383,1.2451512,118250.0,118240.0,0.25963368]
[1753001543692,1.2451512,118250.0,118240.0,0.42869278]
[1753001543990,1.2451512,118250.0,118240.0,0.45386852]
[1753001544184,1.2451512,118250.0,118240.0,0.28480942]
[1753001545492,1.0753948,118250.0,118240.0,0.28480942]
[1753001545686,1.2451512,118250.0,118240.0,0.45386852]
[1753001546189,1.0753948,118250.0,118240.0,0.45386852]
[1753001546391,1.2451512,118250.0,118240.0,0.45386852]
[1753001546689,1.2451512,118250.0,118240.0,0.28480942]
[1753001547188,1.2451512,118250.0,118240.0,0.45386852]
[1753001547589,1.2451512,118250.0,118240.0,0.28480942]
[1753001548682,1.2451512,118250.0,118240.0,0.12895574]
[1753001548883,1.4149076,118250.0,118240.0,0.12895574]
[1753001549087,2.0738276,118250.0,118240.0,0.12895574]
[1753001549793,2.0738276,118250.0,118240.0,0.17708574]
[1753001549992,1.9040712,118250.0,118240.0,0.17708574]
[1753001550891,2.0738276,118250.0,118240.0,0.12895574]
[1753001551197,2.0738276,118250.0,118240.0,0.02517574]
[1753001552088,1.7343148,118250.0,118240.0,0.02517574]
[1753001552288,1.9040712,118250.0,118240.0,0.02517574]
[1753001552992,1.9040712,118250.0,118240.0,0.13079574]
[1753001554090,1.7343148,118250.0,118240.0,0.13079574]
[1753001554290,1.9040712,118250.0,118240.0,0.13079574]
[1753001555895,1.9040712,118250.0,118240.0,0.02517574]
[1753001556589,2.0738276,118250.0,118240.0,0.02728574]
[1753001556893,1.9040712,118250.0,118240.0,0.02728574]
[1753001557795,1.6829648,118250.0,118240.0,0.22635574]
[1753001557996,1.8566412,118250.0,118240.0,0.39541484]
[1753001558186,1.6868848,118250.0,118240.0,0.41817498]
[1753001558494,1.8566412,118250.0,118240.0,0.41817498]
[1753001560589,1.51784,118250.0,118240.0,0.41817498]
[1753001560791,1.6875964,118250.0,118240.0,0.47503498]
[1753001561897,1.6324064,118250.0,118240.0,0.47503498]
[1753001562292,1.46265,118250.0,118240.0,0.48260738]
[1753001562492,1.6324064,118250.0,118240.0,0.48260738]
[1753001564691,1.6324064,118250.0,118240.0,0.52797979]
[1753001565292,1.6324064,118250.0,118240.0,0.52802943]
[1753001565498,1.6324064,118250.0,118240.0,0.52591943]
[1753001565798,1.6324064,118250.0,118240.0,0.56289981]
[1753001566500,1.46265,118250.0,118240.0,0.56500981]
[1753001566697,1.6324064,118250.0,118240.0,0.56500981]
[1753001569699,1.46265,118250.0,118240.0,0.56500981]
[1753001569898,1.6324064,118250.0,118240.0,0.56500981]
[1753001570403,1.46265,118250.0,118240.0,0.56500981]
[1753001570597,1.6324064,118250.0,118240.0,0.56500981]
[1753001571103,1.46265,118250.0,118240.0,0.56500981]
[1753001571403,1.6324064,118250.0,118240.0,0.56500981]
[1753001571594,1.6324064,118250.0,118240.0,0.5196374]
[1753001571993,0.9649764,118250.0,118240.0,0.5196374]
[1753001572794,0.9649764,118250.0,118240.0,0.5206374]
[1753001573201,0.3021364,118250.0,118240.0,0.5216374]
[1753001573896,0.3021364,118250.0,118240.0,0.55207046]
[1753001574905,0.6629364,118250.0,118240.0,0.55207046]
[1753001576704,0.49318,118250.0,118240.0,0.57489165]
[1753001576908,0.6629364,118250.0,118240.0,0.57489165]
[1753001577414,0.3021364,118250.0,118240.0,0.55207046]
[1753001577602,0.13238,118250.0,118240.0,0.55207046]
[1753001577907,0.3021364,118250.0,118240.0,0.55207046]
[1753001578408,0.3021364,118250.0,118240.0,0.57488925]
[1753001578604,0.13238,118250.0,118240.0,0.57488925]
[1753001578905,0.49675,118270.0,118260.0,0.4216705]
[1753001579106,0.6665064,118270.0,118260.0,0.46966295]
[1753001579303,0.3608,118270.0,118260.0,0.46966295]
[1753001579510,1.06205,118280.0,118270.0,0.2679062]
[1753001579809,1.2949464,118280.0,118270.0,0.44683194]
[1753001580109,1.2949464,118280.0,118270.0,0.46964865]
[1753001580403,0.55989,118280.0,118270.0,0.46964865]
[1753001580609,0.49675,118280.0,118270.0,0.46964865]
[1753001580812,0.13595,118280.0,118270.0,0.47725422]
[1753001581010,0.03573,118280.0,118270.0,0.47936422]
[1753001581400,0.2064864,118280.0,118270.0,0.47936422]
[1753001581603,0.2544964,118280.0,118270.0,0.44894194]
[1753001582004,0.08474,118280.0,118270.0,0.44894194]
[1753001582207,0.2534964,118280.0,118270.0,0.47171681]
[1753001582601,0.3087064,118280.0,118270.0,0.47171681]
[1753001582911,0.3057064,118280.0,118270.0,0.47171681]
[1753001583508,0.13595,118280.0,118270.0,0.47171681]
[1753001583710,0.3057064,118280.0,118270.0,0.47171681]
[1753001583910,0.3057064,118280.0,118270.0,0.50213909]
[1753001584113,0.44271026,118290.0,118270.0,0.50213909]
[1753001584114,0.6665064,118290.0,118280.0,0.2678919]
[1753001584319,1.3426264,118290.0,118280.0,0.46957681]
[1753001584810,1.17287,118290.0,118280.0,0.46957681]
[1753001585007,1.17287,118290.0,118280.0,0.44681764]
[1753001585212,1.3426264,118290.0,118280.0,0.46957681]
[1753001585417,1.3436264,118290.0,118280.0,0.46957681]
[1753001586209,1.3456264,118290.0,118280.0,0.44681764]
[1753001586601,1.4087664,118290.0,118280.0,0.44681764]
[1753001586801,1.23901,118290.0,118280.0,0.44681764]
[1753001587004,1.4087664,118290.0,118280.0,0.44681764]
[1753001588101,1.42747612,118290.0,118280.0,0.44681764]
[1753001594213,1.42747612,118290.0,118280.0,0.46957681]
[1753001594416,1.42747612,118290.0,118280.0,0.44892764]
[1753001598319,1.42747612,118290.0,118280.0,0.47168681]
[1753001599921,1.42670732,118290.0,118280.0,0.47168681]
[1753001600115,1.59646372,118290.0,118280.0,0.47168681]
[1753001601724,1.59646372,118290.0,118280.0,0.32465681]
[1753001601919,1.59646372,118290.0,118280.0,0.24237681]
[1753001602320,1.59646372,118290.0,118280.0,0.15565491]
[1753001602520,1.59646372,118290.0,118280.0,0.13289574]
[1753001603018,1.59646372,118290.0,118280.0,0.02728574]
[1753001604022,1.59646372,118290.0,118280.0,0.05004491]
[1753001605016,1.59646372,118290.0,118280.0,0.04989426]
[1753001605522,1.59646372,118290.0,118280.0,0.21889616]
[1753001606228,1.59646372,118290.0,118280.0,0.29772616]
[1753001606415,1.59646372,118290.0,118280.0,0.32062616]
[1753001607024,1.59646372,118290.0,118280.0,0.15162426]
[1753001607923,1.59646372,118290.0,118280.0,0.04989426]
[1753001608314,1.59646372,118290.0,118280.0,0.08031654]
[1753001608518,1.42670732,118290.0,118280.0,0.08031654]
[1753001608725,1.59646372,118290.0,118280.0,0.08031654]
[1753001609430,1.59646372,118290.0,118280.0,0.24931844]
[1753001609623,1.59646372,118290.0,118280.0,0.32814844]
[1753001609821,1.59646372,118290.0,118280.0,0.35104844]
[1753001612329,1.59646372,118290.0,118280.0,0.18204654]
[1753001614232,1.59646372,118290.0,118280.0,0.15162426]
[1753001615130,1.95726372,118290.0,118280.0,0.15162426]
[1753001615932,1.78750732,118290.0,118280.0,0.15162426]
[1753001616134,1.95726372,118290.0,118280.0,0.15162426]
[1753001616330,1.95726372,118290.0,118280.0,0.32062616]
[1753001617034,1.95726372,118290.0,118280.0,0.15162426]
[1753001618435,1.95726372,118290.0,118280.0,0.32062616]
[1753001620639,1.95726372,118290.0,118280.0,0.35104844]
[1753001620939,2.04245124,118290.0,118280.0,0.15162426]
[1753001621139,2.04245124,118290.0,118280.0,0.18204654]
[1753001621440,2.04245124,118290.0,118280.0,0.15162426]
[1753001623845,2.04245124,118290.0,118280.0,0.12885672]
[1753001624450,1.11138732,118290.0,118280.0,0.29785862]
[1753001624645,2.01969124,118290.0,118280.0,0.29785862]
[1753001626848,1.19734364,118290.0,118280.0,0.44623862]
[1753001627050,1.85030364,118290.0,118280.0,0.44623862]
[1753001627348,1.65969168,118290.0,118280.0,0.44623862]
[1753001627647,1.65969168,118290.0,118280.0,0.59647812]
[1753001627945,1.65969168,118290.0,118280.0,0.46900616]
[1753001628542,1.65969168,118290.0,118280.0,0.44623862]
[1753001628948,1.34133677,118290.0,118280.0,0.44623862]
[1753001629948,1.51032437,118290.0,118280.0,0.44623862]
[1753001632051,1.34133677,118290.0,118280.0,0.44623862]
[1753001632451,1.51032437,118290.0,118280.0,0.44623862]
[1753001632846,1.34133677,118290.0,118280.0,0.44623862]
[1753001633847,1.34133677,118290.0,118280.0,0.4766609]
[1753001637253,1.17141972,118290.0,118280.0,0.4766609]
[1753001637453,1.34133677,118290.0,118280.0,0.52231049]
[1753001637846,1.51032437,118290.0,118280.0,0.52231049]
[1753001638445,1.34133677,118290.0,118280.0,0.52231049]
[1753001638648,1.34133677,118290.0,118280.0,0.49188821]
[1753001641055,1.56750437,118290.0,118280.0,0.49188821]
[1753001642753,1.39851677,118290.0,118280.0,0.49188821]
[1753001642954,1.56750437,118290.0,118280.0,0.49188821]
[1753001643762,1.39851677,118290.0,118280.0,0.49188821]
[1753001644961,1.22859972,118290.0,118280.0,0.49188821]
[1753001645264,1.39851677,118290.0,118280.0,0.49188821]
[1753001645464,1.22859972,118290.0,118280.0,0.49188821]
[1753001645664,1.39851677,118290.0,118280.0,0.49188821]
[1753001648969,1.35604974,118290.0,118280.0,0.49188821]
[1753001649566,1.48349976,118290.0,118280.0,0.49188821]
[1753001650370,1.35604974,118290.0,118280.0,0.49188821]
[1753001651573,1.48349976,118290.0,118280.0,0.49188821]
[1753001652269,1.65248736,118290.0,118280.0,0.49188821]
[1753001653564,1.48349976,118290.0,118280.0,0.49188821]
[1753001655171,1.35604974,118290.0,118280.0,0.49188821]
[1753001658072,1.52503734,118290.0,118280.0,0.49188821]
[1753001658468,1.65248736,118290.0,118280.0,0.49188821]
[1753001660067,1.88583734,118290.0,118280.0,0.49188821]
[1753001660274,1.84429976,118290.0,118280.0,0.49188821]
[1753001660472,1.71684974,118290.0,118280.0,0.49188821]
[1753001660771,1.88583734,118290.0,118280.0,0.49188821]
[1753001661668,1.71684974,118290.0,118280.0,0.49188821]
[1753001662272,1.88583734,118290.0,118280.0,0.49188821]
[1753001663777,1.71684974,118290.0,118280.0,0.49188821]
[1753001663968,1.60053974,118290.0,118280.0,0.61933823]
[1753001664274,1.60053974,118290.0,118280.0,0.64933823]
[1753001666070,1.60053974,118290.0,118280.0,0.52188821]
[1753001666270,1.60053974,118290.0,118280.0,0.64933823]
[1753001668074,1.23973974,118290.0,118280.0,0.64933823]
[1753001669374,1.23973974,118290.0,118280.0,0.52188821]
[1753001669574,1.23973974,118290.0,118280.0,0.64933823]
[1753001671181,1.11228972,118290.0,118280.0,0.52188821]
[1753001671376,1.29401974,118290.0,118280.0,0.52188821]
[1753001673980,1.29401974,118290.0,118280.0,0.50668292]
[1753001677283,1.29401974,118290.0,118280.0,0.52951563]
[1753001678484,1.29401974,118290.0,118280.0,0.50668292]
[1753001679185,1.29401974,118290.0,118280.0,0.52951554]
[1753001679584,1.29401974,118290.0,118280.0,0.50668292]
[1753001680484,1.29401974,118290.0,118280.0,0.52951549]
[1753001680685,1.29401974,118290.0,118280.0,0.50668292]
[1753001681583,1.29401974,118290.0,118280.0,0.52951527]
[1753001681780,1.29401974,118290.0,118280.0,0.50668292]
[1753001682888,1.16656972,118290.0,118280.0,0.50668292]
[1753001683186,1.29401974,118290.0,118280.0,0.63413294]
[1753001683786,1.16656972,118290.0,118280.0,0.63413294]
[1753001684089,1.29401974,118290.0,118280.0,0.64933823]
[1753001684488,1.29401974,118290.0,118280.0,0.52188821]
[1753001684789,1.29401974,118290.0,118280.0,0.64933823]
[1753001685685,1.27531002,118290.0,118280.0,0.52188821]
[1753001685988,1.27531002,118290.0,118280.0,0.64933823]
[1753001686691,1.27531002,118290.0,118280.0,0.83933823]
[1753001686892,1.27531002,118290.0,118280.0,0.71188821]
[1753001687092,1.27531002,118290.0,118280.0,0.83933823]
[1753001688984,1.22103002,118290.0,118280.0,0.83933823]
[1753001689696,1.27531002,118290.0,118280.0,0.71188821]
[1753001690098,1.27531002,118290.0,118280.0,0.83933823]
[1753001690396,1.27531002,118290.0,118280.0,0.94933823]
[1753001691604,1.27531002,118290.0,118280.0,0.82188821]
[1753001692004,1.27531002,118290.0,118280.0,0.49188821]
[1753001692205,1.44429762,118290.0,118280.0,0.85188821]
[1753001692505,1.29403016,118290.0,118280.0,0.85188821]
[1753001694105,1.29403016,118290.0,118280.0,0.87188821]
[1753001694299,1.16658014,118290.0,118280.0,0.87188821]
[1753001694502,1.29403016,118290.0,118280.0,0.87188821]
[1753001701009,1.34672016,118290.0,118280.0,0.87188821]
[1753001702210,1.34672016,118290.0,118280.0,0.49188821]
[1753001702600,1.34672016,118290.0,118280.0,0.80188821]
[1753001705609,1.21927014,118290.0,118280.0,0.80188821]
[1753001705804,1.34672016,118290.0,118280.0,0.80188821]
[1753001709512,1.34672016,118290.0,118280.0,0.92933823]
[1753001710606,1.34672016,118290.0,118280.0,0.80188821]
[1753001710806,0.98592016,118290.0,118280.0,0.80188821]
[1753001711013,1.34672016,118290.0,118280.0,0.80188821]
[1753001713916,1.34672016,118290.0,118280.0,0.78668685]
[1753001713917,1.51570766,118290.0,118280.0,0.78668685]
[1753001714112,1.51570766,118290.0,118280.0,0.83658685]
[1753001717417,1.51570766,118290.0,118280.0,0.85942362]
[1753001717620,1.34672016,118290.0,118280.0,0.85942362]
[1753001718913,1.51570766,118290.0,118280.0,0.85942362]
[1753001721127,1.21927014,118290.0,118280.0,0.85942362]
[1753001721316,1.34672016,118290.0,118280.0,0.85942362]
[1753001721918,1.51570766,118290.0,118280.0,0.85942362]
[1753001722418,1.34672016,118290.0,118280.0,0.85942362]
[1753001723021,1.34672016,118290.0,118280.0,0.83658685]
[1753001723518,1.51570766,118290.0,118280.0,0.83658685]
[1753001723920,1.51570766,118290.0,118280.0,0.85178821]
[1753001724219,1.34672016,118290.0,118280.0,0.85178821]
[1753001728627,1.51570766,118290.0,118280.0,1.18578821]
[1753001731430,1.34672016,118290.0,118280.0,1.18578821]
[1753001732329,1.34672016,118290.0,118280.0,1.21578821]
[1753001732831,0.98592016,118290.0,118280.0,1.56578821]
[1753001733032,1.34672016,118290.0,118280.0,1.56518821]
[1753001733333,1.34672016,118290.0,118280.0,1.51518821]
[1753001734033,1.34672016,118290.0,118280.0,0.87178821]
[1753001734230,1.51570766,118290.0,118280.0,1.21514821]
[1753001736034,1.51570766,118290.0,118280.0,0.57178821]
[1753001736232,1.51570766,118290.0,118280.0,1.21482821]
[1753001736430,1.51570766,118290.0,118280.0,0.57178821]
[1753001736636,1.38825764,118290.0,118280.0,0.42340821]
[1753001736934,1.64315768,118290.0,118280.0,0.42340821]
[1753001737432,1.64315768,118290.0,118280.0,0.15267631]
[1753001737637,1.64315768,118290.0,118280.0,0.12267631]
[1753001740038,1.64315768,118290.0,118280.0,0.29167811]
[1753001740233,1.64315768,118290.0,118280.0,0.32212067]
[1753001742143,1.64315768,118290.0,118280.0,0.27647108]
[1753001742343,1.64315768,118290.0,118280.0,0.32212067]
[1753001743538,1.38825764,118290.0,118280.0,0.32212067]
[1753001743744,1.64315768,118290.0,118280.0,0.32212067]
[1753001746140,1.64315768,118290.0,118280.0,0.40122067]
[1753001747145,1.64315768,118290.0,118280.0,0.10746928]
[1753001747346,1.64315768,118290.0,118280.0,0.15311887]
[1753001748652,1.64315768,118290.0,118280.0,0.10746928]
[1753001752055,1.64315768,118290.0,118280.0,0.27647108]
[1753001752556,1.64315768,118290.0,118280.0,0.10746928]
[1753001753551,1.64315768,118290.0,118280.0,0.27647098]
[1753001754849,1.64315768,118290.0,118280.0,0.10746928]
[1753001756158,1.38825764,118290.0,118280.0,0.10746928]
[1753001756359,1.64315768,118290.0,118280.0,0.10746928]
[1753001756560,1.38825764,118290.0,118280.0,0.10746928]
[1753001756861,1.64315768,118290.0,118280.0,0.10746928]
[1753001757453,2.00395768,118290.0,118280.0,0.10746928]
[1753001763071,2.00395768,118290.0,118280.0,0.13029487]
[1753001764065,2.00395768,118290.0,118280.0,0.17008672]
[1753001771969,2.00395768,118290.0,118280.0,0.07702672]
[1753001773972,2.00395768,118290.0,118280.0,0.13029487]
[1753001774366,2.00395768,118290.0,118280.0,0.20124487]
[1753001775872,2.1314077,118290.0,118280.0,0.13029775]
[1753001776073,2.1314077,118290.0,118280.0,0.09985519]
[1753001776074,2.00395768,118290.0,118280.0,0.09985519]
[1753001776471,2.00395768,118290.0,118280.0,0.07702672]
[1753001776671,2.1314077,118290.0,118280.0,0.07702672]
[1753001777065,2.1314077,118290.0,118280.0,0.09985519]
[1753001777374,0.3452094,118280.0,118270.0,0.02282365]
[1753001777572,1.08835946,118280.0,118270.0,0.02282365]
[1753001778275,1.08835946,118280.0,118260.0,0.17228256]
[1753001778276,0.2525837,118270.0,118260.0,0.17228256]
[1753001778471,1.59992374,118270.0,118260.0,0.30228256]
[1753001779175,1.59992374,118270.0,118260.0,0.31325256]
[1753001779471,1.59992374,118270.0,118260.0,0.31425256]
[1753001780171,1.59992374,118270.0,118260.0,0.36374256]
[1753001780573,1.59992374,118270.0,118260.0,0.39348256]
[1753001780775,1.59992374,118270.0,118260.0,0.39248256]
[1753001784788,1.61901155,118270.0,118260.0,0.39248256]
[1753001788479,1.97981155,118270.0,118260.0,0.39248256]
[1753001789283,1.97981155,118270.0,118260.0,0.41728946]
[1753001792086,1.72491151,118270.0,118260.0,0.41728946]
[1753001792293,1.97981155,118270.0,118260.0,0.41728946]
[1753001792590,1.72491151,118270.0,118260.0,0.41728946]
[1753001792780,1.97981155,118270.0,118260.0,0.41728946]
[1753001793391,1.34081155,118270.0,118260.0,0.41728946]
[1753001793589,1.97829155,118270.0,118260.0,0.41728946]
[1753001794089,1.97829155,118270.0,118260.0,0.3868469]
[1753001796091,1.25669155,118270.0,118260.0,0.3868469]
[1753001796291,1.97829155,118270.0,118260.0,0.3868469]
[1753001800190,0.63813783,118270.0,118260.0,0.71376698]
[1753001800393,1.44387103,118270.0,118260.0,0.41728946]
[1753001800791,1.31642101,118270.0,118260.0,0.58631696]
[1753001800984,1.44387103,118270.0,118260.0,0.58631696]
[1753001801184,0.51068781,118270.0,118260.0,0.71376698]
[1753001801391,1.17565783,118270.0,118260.0,0.92376698]
[1753001801594,1.17565783,118270.0,118260.0,0.92476698]
[1753001802590,1.34467103,118270.0,118260.0,0.79731696]
[1753001802794,1.34467103,118270.0,118260.0,0.92476698]
[1753001803986,1.34467103,118270.0,118260.0,0.89432442]
[1753001804384,0.98387103,118270.0,118260.0,0.89432442]
[1753001804585,1.39183103,118270.0,118260.0,0.89532442]
[1753001805493,1.34467103,118270.0,118260.0,0.89532442]
[1753001806497,1.34467103,118270.0,118260.0,0.7678744]
[1753001806698,1.34467103,118270.0,118260.0,0.89532442]
[1753001807699,1.34467103,118270.0,118260.0,0.7678744]
[1753001807899,1.39183103,118270.0,118260.0,0.89532442]
[1753001808398,1.39183103,118270.0,118260.0,0.89743442]
[1753001811404,1.39183103,118270.0,118260.0,0.7699844]
[1753001811597,1.39183103,118270.0,118260.0,0.89743442]
[1753001812403,1.03103103,118270.0,118260.0,0.89743442]
[1753001812702,1.39183103,118270.0,118260.0,0.89743442]
[1753001814100,1.39183013,118270.0,118260.0,0.81563399]
[1753001814300,1.39183013,118270.0,118260.0,0.94308401]
[1753001814501,1.39183013,118270.0,118260.0,0.94097401]
[1753001814899,1.03103013,118270.0,118260.0,0.94097401]
[1753001815897,1.03103013,118270.0,118260.0,0.94308401]
[1753001816102,1.39183013,118270.0,118260.0,0.94308401]
[1753001817203,1.22281783,118270.0,118260.0,0.94308401]
[1753001818106,0.86201783,118270.0,118260.0,0.94308401]